bitfinex/quotes_BTCUSD_20240717
["timestamp","ask_amount","ask_price","bid_price","bid_amount"]
[1721175847970,0.2225,65473.0,65470.0,0.10408579]
[1721175848171,0.2225,65473.0,65471.0,0.00277097]
[1721175848377,0.2225,65473.0,65471.0,0.00916095]
[1721175848578,0.2225,65473.0,65471.0,0.00277097]
[1721175848884,0.2225,65473.0,65472.0,0.0063889]
[1721175849102,0.2225,65473.0,65472.0,0.1022127]
[1721175850029,0.2275,65473.0,65472.0,0.1022127]
[1721175850230,0.2405,65473.0,65472.0,0.1022127]
[1721175850669,0.2325,65473.0,65472.0,0.1032127]
[1721175851066,0.2455,65473.0,65472.0,0.0978238]
[1721175851268,0.2455,65473.0,65472.0,0.10417826]
[1721175852132,0.398234,65473.0,65472.0,0.10417826]
[1721175852312,0.703703,65473.0,65472.0,0.10417826]
[1721175852504,0.703703,65473.0,65472.0,0.0978238]
[1721175852720,1.62233509,65473.0,65472.0,0.0968238]
[1721175853061,1.87373828,65473.0,65472.0,0.002]
[1721175853266,1.75956377,65473.0,65472.0,0.002]
[1721175853610,0.1465,65462.0,65454.0,0.00277097]
[1721175853910,0.2225,65457.0,65451.0,0.00277097]
[1721175854156,0.2225,65457.0,65452.0,0.152783]
[1721175854357,0.2225,65457.0,65453.0,0.00277097]
[1721175854543,0.528044,65457.0,65453.0,0.00277097]
[1721175854843,0.152775,65456.0,65454.0,0.00573355]
[1721175855043,0.152775,65456.0,65449.0,0.00277097]
[1721175855388,0.152775,65456.0,65450.0,0.00573787]
[1721175855606,0.0832,65462.0,65458.0,0.152769]
[1721175855807,0.12888876,65462.0,65457.0,0.152771]
[1721175856004,0.12888876,65462.0,65459.0,0.00572816]
[1721175856005,0.0842,65462.0,65459.0,0.00572816]
[1721175856198,0.2225,65463.0,65460.0,0.00277097]
[1721175856404,0.2225,65463.0,65459.0,0.00277097]
[1721175856658,0.2225,65463.0,65461.0,0.00573064]
[1721175856863,0.2225,65463.0,65460.0,0.00573172]
[1721175857078,0.15276,65462.0,65458.0,0.00277097]
[1721175857217,0.001,65462.0,65455.0,0.305553]
[1721175857418,0.375258,65463.0,65459.0,0.00573279]
[1721175857619,0.15276,65462.0,65457.0,0.00277097]
[1721175857853,0.15276,65462.0,65460.0,0.00573172]
[1721175858054,0.15276,65462.0,65456.0,0.152774]
[1721175858401,0.152767,65459.0,65457.0,0.00850592]
[1721175858557,0.375269,65458.0,65457.0,0.00573495]
[1721175858744,0.375269,65458.0,65453.0,0.09750864]
[1721175858944,0.375269,65458.0,65454.0,0.00277097]
[1721175859175,0.2225,65458.0,65454.0,0.00850765]
[1721175859389,0.152767,65459.0,65454.0,0.00850765]
[1721175859634,0.04568876,65462.0,65454.0,0.16128565]
[1721175859835,0.152764,65461.0,65454.0,0.16128565]
[1721175860054,0.2225,65464.0,65462.0,0.152758]
[1721175860193,0.0499956,65468.0,65461.0,0.305524]
[1721175860406,0.04573208,65468.0,65464.0,0.152754]
[1721175860640,0.04573208,65468.0,65465.0,0.50277097]
[1721175860895,0.04573208,65469.0,65466.0,0.0637]
[1721175861112,0.04573208,65471.0,65470.0,0.152741]
[1721175861317,0.04573208,65471.0,65470.0,0.25097169]
[1721175861764,0.04573208,65474.0,65471.0,0.152739]
[1721175861969,0.04573208,65474.0,65472.0,0.00277097]
[1721175862146,0.04573208,65474.0,65472.0,0.005744]
[1721175862285,0.04573208,65475.0,65472.0,0.15848]
[1721175862488,0.04573208,65474.0,65472.0,0.005744]
[1721175863081,0.04573208,65474.0,65472.0,0.15848]
[1721175863501,0.04572699,65474.0,65473.0,0.152734]
[1721175863687,0.04572699,65474.0,65473.0,0.24607142]
[1721175863894,0.04572699,65475.0,65473.0,0.25181434]
[1721175864219,0.05072699,65474.0,65473.0,0.00574292]
[1721175864400,0.019,65474.0,65473.0,0.25181434]
[1721175864759,0.005,65474.0,65473.0,0.09908034]
[1721175865076,0.05072699,65474.0,65473.0,0.09908034]
[1721175865420,0.005,65474.0,65473.0,0.09908034]
[1721175865610,0.04572699,65474.0,65473.0,0.09908034]
[1721175865808,0.67208648,65474.0,65473.0,0.09333742]
[1721175866013,1.13693222,65474.0,65473.0,0.09333742]
[1721175866215,0.152754,65465.0,65458.0,0.152769]
[1721175866370,0.2225,65463.0,65458.0,0.152769]
[1721175866759,0.2225,65463.0,65459.0,0.00277097]
[1721175866962,0.2225,65463.0,65455.0,0.0656]
[1721175866963,0.0801,65462.0,65457.0,0.00277097]
[1721175867295,0.29806,65462.0,65457.0,0.00277097]
[1721175867705,0.0801,65462.0,65458.0,0.003]
[1721175867958,0.2235,65463.0,65459.0,0.00277097]
[1721175868461,0.2225,65463.0,65457.0,0.15554097]
[1721175868658,0.19848267,65466.0,65460.0,0.15553397]
[1721175868857,0.19848267,65466.0,65459.0,0.152767]
[1721175869058,0.19848267,65466.0,65460.0,0.00277097]
[1721175869059,0.04573167,65465.0,65460.0,0.00277097]
[1721175869201,0.001,65463.0,65462.0,0.00277097]
[1721175869401,0.04573167,65465.0,65462.0,0.10215326]
[1721175869603,0.152753,65465.0,65462.0,0.10788524]
[1721175869845,0.19849188,65465.0,65462.0,0.10511427]
[1721175870567,0.002,65463.0,65462.0,0.10511427]
[1721175870777,0.20049688,65463.0,65462.0,0.10511427]
[1721175870930,0.50701288,65463.0,65462.0,0.09938229]
[1721175871133,0.461274,65463.0,65462.0,0.09938229]
[1721175871335,0.91359,65463.0,65462.0,0.09938229]
[1721175871537,0.98219832,65463.0,65462.0,0.09938229]
[1721175871878,0.98319832,65463.0,65462.0,0.09938229]
[1721175872038,0.98319832,65463.0,65454.0,0.152778]
[1721175872039,0.152764,65461.0,65454.0,0.152778]
[1721175872234,0.30553,65460.0,65455.0,0.00277097]
[1721175872456,0.152767,65459.0,65455.0,0.00574021]
[1721175872659,0.152773,65457.0,65453.0,0.00277097]
[1721175872868,0.152773,65457.0,65456.0,0.00573913]
[1721175873087,0.305544,65457.0,65452.0,0.09778874]
[1721175873290,0.152778,65455.0,65452.0,0.09778874]
[1721175873488,0.152778,65455.0,65453.0,0.00574236]
[1721175874008,0.152788,65450.0,65449.0,0.00277097]
[1721175874228,0.2225,65450.0,65446.0,0.10089597]
[1721175874446,0.2225,65450.0,65446.0,0.098125]
[1721175874640,0.4210344,65450.0,65443.0,0.152804]
[1721175874841,0.152792,65449.0,65442.0,0.152806]
[1721175875166,0.2225,65443.0,65436.0,0.0666]
[1721175875318,0.2225,65443.0,65435.0,0.000924]
[1721175875319,0.152814,65439.0,65435.0,0.000924]
[1721175875504,0.1405,65440.0,65435.0,0.000924]
[1721175875685,0.458463,65436.0,65435.0,0.000924]
[1721175875888,0.61284474,65436.0,65435.0,0.000924]
[1721175876122,0.61284474,65436.0,65418.0,0.00277097]
[1721175876123,0.152856,65421.0,65418.0,0.00277097]
[1721175876391,0.2225,65419.0,65412.0,0.152876]
[1721175876661,0.2225,65419.0,65418.0,0.02396897]
[1721175877360,0.37536,65419.0,65418.0,0.11729792]
[1721175877586,0.37936,65419.0,65418.0,0.11729792]
[1721175878791,0.37536,65419.0,65418.0,0.11729792]
[1721175879031,0.37936,65419.0,65418.0,0.11729792]
[1721175879319,0.7616978,65419.0,65418.0,0.11729792]
[1721175879513,0.152884,65409.0,65408.0,0.000924]
[1721175879759,0.305762,65411.0,65408.0,0.000924]
[1721175879760,0.152881,65410.0,65408.0,0.000924]
[1721175880002,0.011,65419.0,65409.0,0.1452]
[1721175880230,0.152863,65418.0,65410.0,0.00277097]
[1721175880496,0.1,65425.0,65410.0,0.00277097]
[1721175880497,0.152847,65425.0,65418.0,0.152862]
[1721175880782,0.152852,65423.0,65419.0,0.00483901]
[1721175880987,0.3057,65424.0,65414.0,0.305741]
[1721175881223,0.458549,65424.0,65420.0,0.00483793]
[1721175881460,0.458549,65424.0,65415.0,0.305739]
[1721175881461,0.2719926,65426.0,65415.0,0.305739]
[1721175881715,0.152849,65424.0,65421.0,0.00483685]
[1721175881961,0.152849,65424.0,65415.0,0.152869]
[1721175881962,0.305699,65424.0,65415.0,0.152869]
[1721175882229,0.458553,65423.0,65422.0,0.00483577]
[1721175882468,0.764256,65423.0,65422.0,0.00483577]
[1721175882701,0.152859,65420.0,65412.0,0.152875]
[1721175882943,0.152859,65420.0,65413.0,0.16049046]
[1721175883196,0.305708,65422.0,65414.0,0.152871]
[1721175883430,0.305708,65422.0,65414.0,0.00484441]
[1721175883661,0.10692685,65421.0,65414.0,0.00484441]
[1721175883860,0.15286,65420.0,65414.0,0.00484441]
[1721175885054,0.305708,65422.0,65414.0,0.00484441]
[1721175885436,0.152862,65419.0,65414.0,0.00484441]
[1721175885757,0.152862,65419.0,65415.0,0.00484333]
[1721175885937,0.152867,65416.0,65415.0,0.00484333]
[1721175886134,0.152874,65414.0,65409.0,0.1452]
[1721175886409,0.305743,65415.0,65409.0,0.0651]
[1721175886630,0.152872,65414.0,65409.0,0.0651]
[1721175886825,0.15287,65415.0,65409.0,0.0651]
[1721175888063,0.2225,65420.0,65416.0,0.152865]
[1721175888362,0.152856,65421.0,65414.0,0.46138397]
[1721175888598,0.152856,65421.0,65414.0,0.40323289]
[1721175888832,0.152853,65422.0,65415.0,0.152868]
[1721175889283,0.04960451,65423.0,65416.0,0.0759]
[1721175889508,0.152854,65422.0,65416.0,0.228767]
[1721175889776,0.152854,65422.0,65416.0,0.0759]
[1721175890004,0.006,65420.0,65416.0,0.0759]
[1721175890269,0.152854,65422.0,65416.0,0.0759]
[1721175890758,0.159854,65422.0,65416.0,0.0759]
[1721175891026,0.152859,65420.0,65414.0,0.152871]
[1721175891271,0.152859,65420.0,65413.0,0.152874]
[1721175891509,0.152859,65420.0,65415.0,0.001]
[1721175891746,0.152861,65419.0,65413.0,0.152874]
[1721175892185,0.152858,65420.0,65416.0,0.001]
[1721175892407,0.152858,65420.0,65413.0,0.152874]
[1721175892656,0.152861,65419.0,65413.0,0.152874]
[1721175892892,0.152861,65419.0,65411.0,0.387254]
[1721175892893,0.2285,65420.0,65412.0,0.00277097]
[1721175893121,0.05838205,65419.0,65410.0,0.00277097]
[1721175893391,0.305752,65413.0,65408.0,0.000924]
[1721175893612,0.152877,65412.0,65411.0,0.0049628]
[1721175893831,0.152879,65411.0,65410.0,0.09979412]
[1721175894066,0.305752,65413.0,65408.0,0.000924]
[1721175894067,0.152884,65409.0,65408.0,0.000924]
[1721175894511,0.8631097,65409.0,65408.0,0.000924]
[1721175894725,0.76442,65409.0,65408.0,0.000924]
[1721175895650,0.76442,65409.0,65408.0,0.10071812]
[1721175896127,0.76442,65409.0,65408.0,0.000924]
[1721175896593,0.76442,65409.0,65408.0,0.003924]
[1721175896815,0.8936879,65409.0,65408.0,0.003924]
[1721175897760,0.76442,65409.0,65408.0,0.003924]
[1721175898945,0.76442,65409.0,65408.0,0.09393072]
[1721175899173,0.77542,65409.0,65408.0,0.09393072]
[1721175899396,0.76942,65409.0,65408.0,0.09393072]
[1721175899617,0.77642,65409.0,65408.0,0.09493072]
[1721175900548,0.77142,65409.0,65408.0,0.09493072]
[1721175900782,0.77742,65409.0,65408.0,0.09493072]
[1721175901289,0.77742,65409.0,65408.0,0.001924]
[1721175901778,0.83992,65409.0,65408.0,0.001924]
[1721175902005,0.77742,65409.0,65408.0,0.001924]
[1721175902278,0.471652,65409.0,65408.0,0.001924]
[1721175902747,0.013,65409.0,65408.0,0.065124]
[1721175903212,0.165884,65409.0,65408.0,0.00602469]
[1721175903704,0.013,65409.0,65408.0,0.09976416]
[1721175905835,0.0671252,65409.0,65408.0,0.09976416]
[1721175906562,0.013,65409.0,65408.0,0.09976416]
[1721175908258,0.013,65409.0,65408.0,0.22673618]
[1721175908495,0.013,65409.0,65408.0,0.09976416]
[1721175909256,0.013,65409.0,65408.0,0.22673632]
[1721175909483,0.013,65409.0,65408.0,0.22673658]
[1721175909954,0.013,65409.0,65408.0,0.37962258]
[1721175910155,0.013,65409.0,65408.0,0.69572216]
[1721175910358,0.013,65409.0,65408.0,1.12845336]
[1721175910714,0.013,65409.0,65408.0,1.5886071]
[1721175910908,0.04960451,65423.0,65422.0,0.152853]
[1721175911078,0.375332,65431.0,65424.0,0.152847]
[1721175911308,0.2225,65431.0,65425.0,0.4326512]
[1721175911505,0.2225,65431.0,65425.0,0.31076732]
[1721175911709,0.2225,65431.0,65426.0,0.12693568]
[1721175911915,0.2225,65431.0,65428.0,0.152838]
[1721175912336,0.00084,65435.0,65429.0,0.00506992]
[1721175912590,0.011,65431.0,65430.0,0.00277097]
[1721175912761,0.011,65431.0,65430.0,0.16067455]
[1721175913001,0.011,65431.0,65430.0,0.25433233]
[1721175913208,0.011,65431.0,65430.0,0.25156136]
[1721175913857,0.016,65431.0,65430.0,0.09872636]
[1721175914054,0.2385,65431.0,65430.0,0.09872636]
[1721175914281,0.2485,65431.0,65430.0,0.09872636]
[1721175914551,0.2275,65431.0,65430.0,0.25156136]
[1721175915203,0.005,65431.0,65430.0,0.86290136]
[1721175915379,0.005,65431.0,65430.0,1.58927512]
[1721175915911,0.011,65431.0,65430.0,1.89656537]
[1721175916111,0.011,65431.0,65430.0,1.91477707]
[1721175916315,0.006,65431.0,65430.0,1.89653529]
[1721175916762,0.011,65431.0,65430.0,1.89653529]
[1721175916963,0.011,65431.0,65430.0,1.94653529]
[1721175917174,0.006,65431.0,65430.0,1.89653529]
[1721175917374,0.00084,65435.0,65434.0,1.709178]
[1721175917573,0.00084,65435.0,65434.0,2.48708549]
[1721175917786,0.00084,65435.0,65434.0,2.49376712]
[1721175918547,0.00084,65435.0,65434.0,2.79941812]
[1721175918744,0.00184,65435.0,65434.0,2.00376712]
[1721175918967,0.00184,65435.0,65434.0,2.49376712]
[1721175919175,0.00084,65435.0,65434.0,2.49376712]
[1721175919396,0.00084,65435.0,65434.0,2.49377041]
[1721175920013,0.00184,65435.0,65434.0,2.49677041]
[1721175920639,0.00184,65435.0,65434.0,2.50377041]
[1721175920873,0.00184,65435.0,65434.0,2.80242141]
[1721175921221,0.00284,65435.0,65434.0,2.81242141]
[1721175921423,0.00284,65435.0,65434.0,3.15807241]
[1721175921656,0.00284,65435.0,65434.0,3.25807241]
[1721175921851,0.00284,65435.0,65434.0,3.29107241]
[1721175921852,0.00384,65435.0,65434.0,3.29107241]
[1721175922062,0.00184,65435.0,65434.0,3.28807241]
[1721175922205,0.00184,65435.0,65434.0,3.23807241]
[1721175922406,0.00384,65435.0,65434.0,3.25407241]
[1721175922609,0.00384,65435.0,65434.0,3.30407241]
[1721175922831,0.00284,65435.0,65434.0,3.30207241]
[1721175923360,0.00384,65435.0,65434.0,3.25407241]
[1721175923561,0.00384,65435.0,65434.0,2.42542141]
[1721175923759,0.00184,65435.0,65434.0,2.30142141]
[1721175924024,0.00184,65435.0,65434.0,2.31542141]
[1721175924213,0.00184,65435.0,65434.0,2.81542141]
[1721175925289,0.00184,65435.0,65434.0,2.68852618]
[1721175925679,0.00184,65435.0,65434.0,2.81541529]
[1721175925917,0.00184,65435.0,65434.0,2.78373366]
[1721175926764,0.00184,65435.0,65434.0,2.65684455]
[1721175927510,0.00184,65435.0,65434.0,2.78373278]
[1721175927766,0.00184,65435.0,65434.0,2.84495178]
[1721175931863,0.00184,65435.0,65434.0,2.84494838]
[1721175932495,0.00184,65435.0,65434.0,2.84495083]
[1721175933719,0.00184,65435.0,65434.0,2.34495083]
[1721175933919,0.00184,65435.0,65434.0,2.84495083]
[1721175934127,0.00184,65435.0,65434.0,0.94610981]
[1721175934480,0.00184,65435.0,65434.0,1.25689568]
[1721175935082,0.00184,65435.0,65434.0,1.56254668]
[1721175935286,0.00184,65435.0,65434.0,1.54854668]
[1721175935709,0.00084,65435.0,65434.0,1.55454668]
[1721175936128,0.00184,65435.0,65434.0,1.56254668]
[1721175936465,0.08464,65435.0,65434.0,0.11576868]
[1721175936686,0.08464,65435.0,65434.0,0.10776868]
[1721175936687,0.327877,65435.0,65434.0,0.10776868]
[1721175936849,0.327877,65435.0,65434.0,0.11063381]
[1721175937052,0.634523,65435.0,65434.0,0.11063381]
[1721175937254,0.176054,65435.0,65434.0,0.10263381]
[1721175937458,0.14534,65435.0,65434.0,0.10263381]
[1721175938044,0.14534,65435.0,65434.0,0.11063381]
[1721175938268,0.297163,65435.0,65434.0,0.10263381]
[1721175938598,0.152828,65433.0,65430.0,0.000924]
[1721175938805,0.2225,65431.0,65430.0,0.000924]
[1721175939185,0.2225,65431.0,65430.0,0.09870648]
[1721175939385,0.2225,65431.0,65430.0,0.25154148]
[1721175939739,0.2225,65431.0,65430.0,0.153759]
[1721175939955,0.15434,65435.0,65432.0,0.305659]
[1721175940178,0.00384,65435.0,65434.0,0.764127]
[1721175940381,0.00384,65435.0,65434.0,0.85719544]
[1721175940587,0.00684,65435.0,65434.0,0.85719544]
[1721175940735,0.00084,65435.0,65434.0,0.85719544]
[1721175941119,0.00484,65435.0,65434.0,0.85719544]
[1721175941527,0.00484,65435.0,65434.0,1.16284644]
[1721175942353,0.00484,65435.0,65434.0,0.55154444]
[1721175943033,0.606809,65435.0,65434.0,0.09706844]
[1721175943229,0.6897399,65435.0,65434.0,0.004]
[1721175943404,0.3800939,65435.0,65434.0,0.004]
[1721175943586,0.14434,65435.0,65434.0,0.100282]
[1721175943771,0.297163,65435.0,65434.0,0.100282]
[1721175944172,0.602809,65435.0,65434.0,0.004]
[1721175944377,0.602809,65435.0,65434.0,0.007]
[1721175944990,0.602809,65435.0,65434.0,0.004]
[1721175945189,0.298163,65435.0,65430.0,0.000924]
[1721175945418,0.07894,65435.0,65434.0,0.458476]
[1721175945614,0.00584,65435.0,65434.0,0.458476]
[1721175945993,0.00584,65435.0,65430.0,0.097206]
[1721175945994,0.152826,65434.0,65430.0,0.097206]
[1721175946200,0.152826,65434.0,65430.0,0.000924]
[1721175946416,0.1482,65433.0,65430.0,0.000924]
[1721175946616,0.15283,65432.0,65430.0,0.000924]
[1721175946818,0.301028,65433.0,65430.0,0.000924]
[1721175947032,0.2667985,65432.0,65430.0,0.000924]
[1721175947789,0.1139665,65432.0,65430.0,0.000924]
[1721175948247,0.1482,65433.0,65430.0,0.000924]
[1721175948425,0.301028,65433.0,65430.0,0.000924]
[1721175948793,0.001,65432.0,65430.0,0.000924]
[1721175949300,0.002,65432.0,65430.0,0.000924]
[1721175949855,0.002,65432.0,65431.0,0.152832]
[1721175950056,0.001,65432.0,65431.0,0.25249642]
[1721175950258,0.001,65432.0,65431.0,0.92932642]
[1721175950454,0.001,65432.0,65431.0,0.86382642]
[1721175950872,0.002,65432.0,65431.0,0.86382642]
[1721175951379,0.001,65432.0,65431.0,0.86382642]
[1721175951583,0.22334,65435.0,65434.0,0.152825]
[1721175951816,0.22334,65435.0,65434.0,0.25248942]
[1721175952019,0.22334,65435.0,65434.0,0.55814042]
[1721175952221,0.00084,65435.0,65434.0,0.55814042]
[1721175952625,0.00084,65435.0,65434.0,1.16944242]
[1721175953066,0.00084,65435.0,65434.0,0.86379142]
[1721175953540,0.00184,65435.0,65434.0,0.86379142]
[1721175954785,0.00184,65435.0,65434.0,0.86679142]
[1721175955417,0.00084,65435.0,65434.0,0.86679142]
[1721175955838,0.00084,65435.0,65434.0,0.87079142]
[1721175958697,0.00084,65435.0,65434.0,1.17644242]
[1721175962199,0.00084,65435.0,65434.0,1.90388856]
[1721175962606,0.00084,65435.0,65434.0,1.90387666]
[1721175962968,0.00084,65435.0,65434.0,1.89987666]
[1721175963355,0.00184,65435.0,65434.0,1.90987666]
[1721175964177,0.00184,65435.0,65434.0,1.90687666]
[1721175964385,0.00184,65435.0,65434.0,1.91787666]
[1721175964795,0.00184,65435.0,65434.0,1.79097516]
[1721175964999,0.00184,65435.0,65434.0,1.91787334]
[1721175969067,0.00184,65435.0,65434.0,1.91786802]
[1721175969688,0.00184,65435.0,65434.0,2.22351902]
[1721175972208,0.00184,65435.0,65434.0,2.22351245]
[1721175974630,0.00184,65435.0,65434.0,1.53301045]
[1721175975473,0.00184,65435.0,65434.0,2.03301649]
[1721175978508,0.00184,65435.0,65434.0,1.53301649]
[1721175978693,0.00184,65435.0,65434.0,1.90612416]
[1721175978917,0.00184,65435.0,65434.0,2.47037465]
[1721175979198,0.00184,65435.0,65434.0,2.42036693]
[1721175979733,0.00184,65435.0,65434.0,2.72601793]
[1721175979950,0.00084,65435.0,65434.0,2.76601793]
[1721175980341,0.00184,65435.0,65434.0,2.78001793]
[1721175980527,0.00184,65435.0,65434.0,2.73001793]
[1721175981720,0.00184,65435.0,65434.0,2.73001191]
[1721175981921,0.00184,65435.0,65434.0,2.71901191]
[1721175982351,0.00184,65435.0,65434.0,2.73301191]
[1721175983438,0.00184,65435.0,65434.0,2.75123697]
[1721175983830,0.00184,65435.0,65434.0,2.80123697]
[1721175984177,0.00184,65435.0,65434.0,2.75123697]
[1721175985040,0.00184,65435.0,65434.0,2.73301189]
[1721175985241,0.00184,65435.0,65434.0,2.75123767]
[1721175987490,0.00184,65435.0,65434.0,2.44558667]
[1721175987868,0.00184,65435.0,65434.0,2.42736089]
[1721175988237,0.00184,65435.0,65434.0,2.30047516]
[1721175988461,0.00184,65435.0,65434.0,2.427361]
[1721175988651,0.00184,65435.0,65434.0,2.4455872]
[1721175989067,0.00184,65435.0,65434.0,2.44558705]
[1721175989403,0.00184,65435.0,65434.0,2.44558874]
[1721175990644,0.00184,65435.0,65434.0,2.36388874]
[1721175991068,0.00184,65435.0,65434.0,1.86388874]
[1721175991207,0.00184,65435.0,65434.0,2.30258874]
[1721175991411,0.00184,65435.0,65434.0,2.30259193]
[1721175991613,0.00184,65435.0,65434.0,2.48591967]
[1721175991848,0.00184,65435.0,65434.0,1.78436388]
[1721175992049,0.00184,65435.0,65434.0,2.28436388]
[1721175992272,0.00184,65435.0,65434.0,1.32433114]
[1721175994443,0.00184,65435.0,65434.0,1.32434555]
[1721175997586,0.00184,65435.0,65434.0,1.19744242]
[1721175997971,0.00184,65435.0,65434.0,1.32434948]
[1721175998243,0.00184,65435.0,65434.0,1.19744242]
[1721175998419,0.00184,65435.0,65434.0,1.32434952]
[1721176000374,0.00184,65435.0,65434.0,1.32527352]
[1721176000757,0.00184,65435.0,65434.0,1.54445526]
[1721176001101,0.00184,65435.0,65434.0,1.5444516]
[1721176001848,0.00184,65435.0,65434.0,1.8501026]
[1721176002358,0.00184,65435.0,65434.0,2.0444516]
[1721176002879,0.00184,65435.0,65434.0,2.3501026]
[1721176003480,0.00184,65435.0,65434.0,1.8501026]
[1721176003699,0.00184,65435.0,65434.0,2.3501026]
[1721176004232,0.00184,65435.0,65434.0,2.22319916]
[1721176004445,0.00184,65435.0,65434.0,2.04444181]
[1721176004637,0.00184,65435.0,65434.0,1.47964181]
[1721176004843,0.00184,65435.0,65434.0,1.97964181]
[1721176005821,0.00184,65435.0,65434.0,2.28529281]
[1721176006068,0.00184,65435.0,65434.0,1.47964181]
[1721176006269,0.00184,65435.0,65434.0,1.97964181]
[1721176007614,0.00184,65435.0,65434.0,1.47964181]
[1721176009833,0.00184,65435.0,65434.0,1.97964181]
[1721176010505,0.00184,65435.0,65434.0,1.85274816]
[1721176010621,0.00184,65435.0,65434.0,1.97964561]
[1721176013368,0.00184,65435.0,65434.0,2.28529661]
[1721176013818,0.00184,65435.0,65434.0,2.28529638]
[1721176015400,0.00184,65435.0,65434.0,2.63295569]
[1721176015782,0.00184,65435.0,65434.0,2.61468442]
[1721176015898,0.00184,65435.0,65434.0,2.66468442]
[1721176016099,0.00184,65435.0,65434.0,2.61468442]
[1721176018268,0.00184,65435.0,65434.0,2.51502]
[1721176019671,0.00184,65435.0,65434.0,2.56502]
[1721176019872,0.00184,65435.0,65434.0,2.51502]
[1721176020680,0.00184,65435.0,65434.0,2.60931663]
[1721176022468,0.00184,65435.0,65434.0,2.29923137]
[1721176022672,0.00184,65435.0,65434.0,2.60935806]
[1721176023932,0.00184,65435.0,65434.0,2.22200706]
[1721176024737,0.00184,65435.0,65434.0,2.52765806]
[1721176025641,0.00184,65435.0,65434.0,2.21753137]
[1721176025858,0.00184,65435.0,65434.0,2.52820027]
[1721176026058,0.00184,65435.0,65434.0,2.21753137]
[1721176026254,0.00184,65435.0,65434.0,2.52820491]
[1721176028112,0.09074,65435.0,65434.0,1.47426769]
[1721176028295,0.09074,65435.0,65434.0,1.97426769]
[1721176028835,0.00184,65435.0,65434.0,1.97427713]
[1721176029045,0.00184,65435.0,65434.0,2.27992813]
[1721176029290,0.00184,65435.0,65434.0,2.54315152]
[1721176029495,0.00184,65435.0,65434.0,2.52795152]
[1721176030254,0.00184,65435.0,65434.0,2.54623312]
[1721176030378,0.00184,65435.0,65434.0,2.52795152]
[1721176032235,0.00184,65435.0,65434.0,2.52842719]
[1721176035416,0.00184,65435.0,65434.0,2.52831309]
[1721176037692,0.00184,65435.0,65434.0,2.50331309]
[1721176038615,0.00184,65435.0,65434.0,2.50323496]
[1721176041838,0.00184,65435.0,65434.0,2.43899715]
[1721176042220,0.00184,65435.0,65434.0,2.13334615]
[1721176042740,0.00184,65435.0,65434.0,2.151615]
[1721176043516,0.06624,65435.0,65434.0,2.13334615]
[1721176043864,0.00184,65435.0,65434.0,2.15160626]
[1721176044064,0.00184,65435.0,65434.0,2.13334615]
[1721176044451,0.00184,65435.0,65434.0,2.43899715]
[1721176044885,0.00184,65435.0,65434.0,2.43885232]
[1721176046326,0.00184,65435.0,65434.0,2.50505232]
[1721176047563,0.08074,65435.0,65434.0,2.43885232]
[1721176050034,0.08074,65435.0,65434.0,1.93885232]
[1721176050239,0.08074,65435.0,65434.0,2.43885232]
[1721176051234,0.00184,65435.0,65434.0,2.43885232]
[1721176051701,0.00184,65435.0,65434.0,1.93885232]
[1721176051911,0.00184,65435.0,65434.0,2.43885232]
[1721176052493,0.00184,65435.0,65434.0,1.93885232]
[1721176052626,0.00184,65435.0,65434.0,2.43885232]
[1721176053438,0.00184,65435.0,65434.0,2.13165618]
[1721176053742,0.00184,65435.0,65434.0,1.64992783]
[1721176054141,0.00184,65435.0,65434.0,2.14992783]
[1721176054516,0.00184,65435.0,65434.0,1.82083523]
[1721176054714,0.00184,65435.0,65434.0,2.150079]
[1721176055290,0.00184,65435.0,65434.0,1.650079]
[1721176055500,0.00184,65435.0,65434.0,2.150079]
[1721176056133,0.00184,65435.0,65434.0,2.15004535]
[1721176056771,0.00184,65435.0,65434.0,2.45569437]
[1721176056963,0.00184,65435.0,65434.0,2.43742598]
[1721176057819,0.00184,65435.0,65434.0,2.44370971]
[1721176058479,0.00184,65435.0,65434.0,2.44371108]
[1721176060118,0.00184,65435.0,65434.0,2.58191108]
[1721176060326,0.00184,65435.0,65434.0,2.63191108]
[1721176060522,0.00184,65435.0,65434.0,2.58191108]
[1721176061011,0.00866279,65441.0,65440.0,1.06968]
[1721176061282,0.00866279,65441.0,65440.0,1.44756283]
[1721176061768,0.00866279,65441.0,65440.0,1.75318583]
[1721176062318,0.00866279,65441.0,65440.0,1.76418583]
[1721176062951,0.00866279,65441.0,65440.0,1.77518583]
[1721176064179,0.00866279,65441.0,65440.0,1.7751858]
[1721176067467,0.00866279,65441.0,65440.0,1.77518631]
[1721176069188,0.15346279,65441.0,65440.0,1.31518157]
[1721176070627,0.15346279,65441.0,65440.0,1.31518214]
[1721176073562,0.15346279,65441.0,65440.0,1.31210941]
[1721176073927,0.33509491,65441.0,65440.0,0.022]
[1721176074141,0.88684476,65441.0,65440.0,0.022]
[1721176074360,1.12667424,65441.0,65440.0,0.022]
[1721176074558,1.37750753,65441.0,65440.0,0.022]
[1721176074782,1.37750753,65441.0,65440.0,0.011]
[1721176074783,1.40349181,65441.0,65440.0,0.011]
[1721176075035,1.09787381,65441.0,65440.0,0.011]
[1721176075223,1.09987381,65441.0,65440.0,0.011]
[1721176075486,1.07388953,65441.0,65440.0,0.011]
[1721176075661,0.152821,65436.0,65434.0,0.000924]
[1721176075812,0.30334862,65435.0,65434.0,0.000924]
[1721176076013,0.30334862,65435.0,65434.0,0.09836476]
[1721176076655,0.2346,65435.0,65434.0,0.09836476]
[1721176077231,0.2356,65435.0,65434.0,0.09836476]
[1721176077430,0.28140025,65435.0,65434.0,0.09836476]
[1721176077927,0.28440025,65435.0,65434.0,0.09836476]
[1721176078669,0.2386,65435.0,65434.0,0.09836476]
[1721176078900,0.2396,65435.0,65434.0,0.09836476]
[1721176080788,0.2396,65435.0,65434.0,0.25118976]
[1721176081131,0.2396,65435.0,65434.0,0.55684076]
[1721176081335,0.2396,65435.0,65434.0,0.25118976]
[1721176083613,0.28341759,65435.0,65434.0,0.09836476]
[1721176084571,0.43624059,65435.0,65434.0,0.09836476]